Workbook

Sheet Sheet1
D10: WANG MASUK
F11: 1 | G11: 2 | H11: 3 | I11: 4 | J11: 5 | K11: 6 | L11: 7 | M11: 8 | N11: 9 | O11: 10 | P11: 11 | Q11: 12 | R11: 13 | S11: 14 | T11: 15 | U11: 16 | W11: TOTAL
D13: BAKI AWAL BULAN | F13: 0 | G13: =+F49 -> 25000 | H13: =+G49 -> -42000 | I13: =+H49 -> -122000 | J13: =+I49 -> -314000 | K13: =+J49 -> -275000 | L13: =+K49 -> -194000 | M13: -229000 | N13: 33000 | O13: 102000 | P13: 174000 | Q13: 407000 | R13: 451000 | S13: 465000 | T13: 626000 | U13: 852000
D15: Modal Awal Kerja | E15: 400000 | F15: 400000
D17: Bayaran Kemajuan Kerja
D19: Siap Kerja asas / sub struktur | E19: 638000 | J19: 204000 | K19: 108000 | L19: 108000 | M19: 109000 | N19: 109000 | W19: =+SUM(F19:U19) -> 638000
D20: Siap Kerja rangka konkrit | E20: 478000 | J20: 152000 | K20: 81000 | L20: 81000 | M20: 81000 | N20: 83000 | W20: =+SUM(F20:U20) -> 478000
D21: Siap dinding bata dan Frame | E21: 319000 | K21: 156000 | L21: 54000 | M21: 54000 | N21: 55000 | W21: 319000
D22: Siap siling atap dan lepaan | E22: 319000 | M22: 268000 | N22: 17000 | O22: 17000 | P22: 17000 | W22: 319000
D23: Siap Kerja paip dan elektrik | E23: 319000 | O23: 159000 | P23: 160000 | W23: 319000
D24: Siap pintu tingkap / Septik Lantai | E24: 478000 | O24: 119000 | P24: 119000 | Q24: 120000 | R24: 120000 | W24: 478000
D25: Siap longkang dan jalan | E25: 479000 | S25: 239000 | T25: 240000 | W25: 479000
D26: Sijil SKD dikeluarkan | E26: 160000 | U26: 160000 | W26: 160000
D28: Jumlah wang masuk | E28: =+SUM(E15:E27) -> 3590000 | F28: =+SUM(F13:F26) -> 400000 | G28: =+SUM(G19:G26) -> 0 | H28: =+SUM(H19:H26) -> 0 | I28: =+SUM(I19:I26) -> 0 | J28: =+SUM(J19:J26) -> 356000 | K28: =+SUM(K19:K26) -> 345000 | L28: =+SUM(L19:L26) -> 243000 | M28: 512000 | N28: 264000 | O28: 295000 | P28: 296000 | Q28: 120000 | R28: 120000 | S28: =+SUM(S19:S26) -> 239000 | T28: 240000 | U28: =+SUM(U19:U26) -> 160000
D29: Baki Akhir Bulan | F29: =+F28 -> 400000 | G29: =+G13+G28 -> 25000 | H29: =+H13+H28 -> -42000 | I29: =+I13+I28 -> -122000 | J29: =+J13+J28 -> 42000 | K29: =+K13+K28 -> 70000 | L29: =+L13+L28 -> 49000 | M29: 283000 | N29: 297000 | O29: 397000 | P29: 470000 | Q29: 527000 | R29: 571000 | S29: 704000 | T29: 866000 | U29: 1012000
D31: WANG KELUAR
D33: H/Tanah/Pecah Sempadan/Plan | E33: 307000 | F33: 307000 | W33: =+SUM(F33:U33) -> 307000
D34: Kerjatanah dan pejabat tanah | E34: 85000 | F34: 43000 | G34: 42000 | W34: =+SUM(F34:U34) -> 85000
D35: Pembinaan Bangunan | E35: 1611000 | H35: 54000 | I35: 161000 | J35: 267000 | K35: 215000 | L35: 229000 | M35: 202000 | N35: 149000 | O35: 174000 | P35: 54000 | Q35: 66000 | R35: 40000 | W35: 1611000
D36: Pembinaan Jalan | E36: 61000 | S36: 61000 | W36: 61000
D37: Pembinaan longkang & Culvert | E37: 32000 | R37: 32000 | W37: 32000
D38: Bekalan air | E38: 23000 | R38: 23000 | W38: 23000
D39: Bekalan elektrik | E39: 7000 | S39: 7000 | W39: 7000
D40: Landskap | E40: 7000 | T40: 7000 | W40: 7000
D41: Perbelanjaan Pengurusan | E41: 91000 | F41: 5000 | G41: 5000 | H41: 5000 | I41: 5000 | J41: 5000 | K41: 6000 | L41: 6000 | M41: 6000 | N41: 6000 | O41: 6000 | P41: 6000 | Q41: 6000 | R41: 6000 | S41: 6000 | T41: 6000 | U41: 6000 | W41: 91000
D42: Perbelanjaan Pemasaran | E42: 80000 | F42: 8000 | G42: 8000 | H42: 8000 | I42: 8000 | J42: 8000 | K42: 8000 | L42: 8000 | M42: 8000 | N42: 8000 | O42: 8000 | W42: 80000
D43: Yuran Profesional | E43: 91000 | F43: 9000 | G43: 9000 | H43: 9000 | I43: 9000 | J43: 9000 | K43: 9000 | L43: 9000 | M43: 9000 | N43: 9000 | O43: 10000 | W43: 91000
D44: Yuran Guaman & Gadaian | E44: 80000 | J44: 13000 | K44: 13000 | L44: 13000 | M44: 13000 | N44: 14000 | O44: 14000 | W44: 80000
D45: Kontigensi | E45: 110000 | F45: 3000 | G45: 3000 | H45: 4000 | I45: 9000 | J45: 15000 | K45: 13000 | L45: 13000 | M45: 12000 | N45: 9000 | O45: 11000 | P45: 3000 | Q45: 4000 | R45: 5000 | S45: 4000 | T45: 1000 | U45: 1000 | W45: 110000
D47: Jumlah wang keluar | E47: =+SUM(E33:E45) -> 2585000 | F47: =+SUM(F33:F45) -> 375000 | G47: =+SUM(G33:G45) -> 67000 | H47: =+SUM(H33:H45) -> 80000 | I47: =+SUM(I33:I45) -> 192000 | J47: =+SUM(J33:J45) -> 317000 | K47: =+SUM(K33:K45) -> 264000 | L47: =+SUM(L33:L45) -> 278000 | M47: =+SUM(M33:M45) -> 250000 | N47: =+SUM(N33:N45) -> 195000 | O47: 223000 | P47: 63000 | Q47: 76000 | R47: 106000 | S47: =+SUM(S33:S45) -> 78000 | T47: 14000 | U47: 7000
D49: LEBIHAN | E49: =+E28-E47 -> 1005000 | F49: =+F29-F47 -> 25000 | G49: =+G29-G47 -> -42000 | H49: =+H29-H47 -> -122000 | I49: =+I29-I47 -> -314000 | J49: =+J29-J47 -> -275000 | K49: =+K29-K47 -> -194000 | L49: =+L29-L47 -> -229000 | M49: =+M29-M47 -> 33000 | N49: =+N29-N47 -> 102000 | O49: 174000 | P49: 407000 | Q49: 451000 | R49: 465000 | S49: =+S29-S47 -> 626000 | T49: 852000 | U49: 1005000

Sheet Sheet2

Sheet Sheet3
